fUSD/lending_fUSD_20251115
["ID","MTS","AMOUNT","RATE_DAILY","PERIOD"]
[394057699,1763235110510,-152.0,0.000494,120]
[394057700,1763235110536,-189.32260641,0.00049435,30]
[394057701,1763235110566,-150.0,0.0004944,30]
[394057702,1763235110607,-150.0,0.00049444,30]
[394057703,1763235110631,-48491.0084,0.00049444,120]
[394057704,1763235110657,-1095.0,0.00049452,30]
[394057705,1763235110685,-189.32260641,0.00049487,30]
[394057706,1763235110710,-150.0,0.00049502,30]
[394057707,1763235110734,-197.33,0.0004951,120]
[394057708,1763235110761,-150.0,0.00049524,30]
[394057709,1763235110787,-189.32260641,0.0004954,30]
[394057710,1763235110812,-150.0,0.00049561,30]
[394057711,1763235110837,-200.86,0.00049589,30]
[394057712,1763235110867,-189.32260641,0.00049592,30]
[394057713,1763235110897,-150.0,0.00049608,30]
[394057714,1763235110925,-150.0,0.00049619,30]
[394057715,1763235110952,-189.32260641,0.00049645,30]
[394057716,1763235110977,-300.0,0.00049647,120]
[394057717,1763235111002,-175.97821451,0.0004966,120]
[394057718,1763235111027,-150.0,0.00049677,30]
[394057719,1763235111055,-150.0,0.00049691,30]
[394057720,1763235111079,-189.32260641,0.00049697,30]
[394057721,1763235111102,-1208.37,0.00049707,30]
[394057722,1763235111125,-150.0,0.00049707,30]
[394057723,1763235111150,-833.22,0.00049707,30]
[394057724,1763235111176,-300.0,0.00049707,30]
[394057725,1763235111201,-150.0,0.00049736,30]
[394057726,1763235111224,-189.32260641,0.0004975,30]
[394057727,1763235111250,-150.0,0.00049775,30]
[394057728,1763235111274,-150.0,0.00049794,30]
[394057729,1763235111298,-152.0,0.000498,120]
[394057730,1763235111322,-189.32260641,0.00049802,30]
[394057731,1763235111347,-150.0,0.00049852,30]
[394057732,1763235111372,-189.32260641,0.00049855,30]
[394057733,1763235111396,-150.0,0.00049859,30]
[394057734,1763235111422,-1620.23,0.00049892,120]
[394057735,1763235111448,-189.32260641,0.00049907,30]
[394057736,1763235111473,-150.0,0.00049911,30]
[394057737,1763235111497,-1337.9,0.00049915,120]
[394057738,1763235111521,-150.0,0.00049943,30]
[394057739,1763235111545,-189.32260641,0.0004996,30]
[394057740,1763235111569,-150.0,0.00049969,30]
[394057741,1763235111593,-161.64621316,0.00049999,50]
[394057742,1763235111617,-270.49982064,0.00049999,120]
[394057743,1763235111639,-401.2934914,0.00049999,120]
[394057744,1763235111663,-431.07533214,0.00049999,120]
[394057745,1763235111689,-391.79223753,0.00049999,120]
[394057746,1763235111717,-467.57099258,0.00049999,120]
[394057747,1763235111743,-500.0,0.00049999,120]
[394057748,1763235111768,-500.0,0.00049999,120]
[394057749,1763235111793,-441.73538919,0.00049999,120]
[394057750,1763235111827,-500.0,0.00049999,120]
[394057751,1763235111875,-500.0,0.00049999,120]
[394057752,1763235111906,-250.61081046,0.00049999,120]
[394057753,1763235111934,-500.0,0.00049999,120]
[394057754,1763235111959,-200.74116383,0.00049999,120]
[394057755,1763235111983,-500.0,0.00049999,120]
[394057756,1763235112010,-500.0,0.00049999,120]
[394057757,1763235112038,-500.0,0.00049999,120]
[394057758,1763235112061,-500.0,0.00049999,120]
[394057759,1763235112084,-500.0,0.00049999,120]
[394057760,1763235112110,-50000.0,0.0005,50]
[394057761,1763235112135,-185.97,0.0005,120]
[394057762,1763235112163,-1000000.0,0.0005,120]
[394057763,1763235112192,-1000000.0,0.0005,120]
[394057764,1763235112217,-1000000.0,0.0005,120]
[394057765,1763235112245,-739843.62654379,0.0005,120]
[394057766,1763235112441,151.0,0.00041422,120]
[394057767,1763235112483,151.0,0.00041422,120]
[394057768,1763235112574,151.0,0.00041422,120]
[394057769,1763235112619,151.0,0.00041422,120]
[394057770,1763235112698,151.0,0.00041422,120]
[394057771,1763235112753,151.0,0.00041422,120]
[394057772,1763235112821,151.0,0.00041422,120]
[394057773,1763235112872,151.0,0.00041422,120]
[394057774,1763235113010,151.0,0.00041422,120]
[394057775,1763235113057,151.0,0.00041422,120]
[394057776,1763235113129,151.0,0.00041422,120]
[394057777,1763235113171,151.0,0.00041422,120]
[394057778,1763235113262,414.0,0.00041422,120]
[394057779,1763235113400,151.0,0.00041422,120]
[394057780,1763235113455,151.0,0.00041422,120]
[394057781,1763235113545,151.0,0.00041422,120]
[394057782,1763235113599,151.0,0.00041422,120]
[394057783,1763235113702,151.0,0.00041422,120]
[394057784,1763235113759,151.0,0.00041422,120]
[394057785,1763235113870,151.0,0.00041422,120]
[394057786,1763235113926,151.0,0.00041422,120]
[394057787,1763235114082,151.0,0.00041422,120]
[394057788,1763235114140,151.0,0.00041422,120]
[394057789,1763235114229,151.0,0.00041422,120]
[394057790,1763235114284,151.0,0.00041422,120]
[394057791,1763235114439,151.0,0.00041422,120]
[394057792,1763235114488,151.0,0.00041422,120]
[394057793,1763235114571,151.0,0.00041422,120]
[394057794,1763235114619,151.0,0.00041422,120]
[394057795,1763235114694,151.0,0.00041422,120]
[394057796,1763235114739,151.0,0.00041422,120]
[394057797,1763235114900,151.0,0.00041422,120]
[394057798,1763235114979,151.0,0.00041422,120]
[394057799,1763235115160,200.0,0.00041422,30]
[394057800,1763235115236,207.4,0.00041422,30]
[394057801,1763235115308,215.0738,0.00041422,30]
[394057802,1763235115361,223.0315306,0.00041422,30]
[394057803,1763235115588,231.28369723,0.00041422,30]
[394057804,1763235115647,239.84119403,0.00041422,30]
[394057805,1763235115711,248.71531821,0.00041422,30]
[394057806,1763235115816,257.91778498,0.00041422,30]
[394057807,1763235115920,267.46074303,0.00041422,30]
[394057808,1763235116001,277.35679052,0.00041422,30]
[394057809,1763235116099,287.61899177,0.00041422,30]
[394057810,1763235116157,298.26089446,0.00041422,30]
[394057811,1763235116218,309.29654756,0.00041422,30]
[394057812,1763235116300,320.74051982,0.00041422,30]
[394057813,1763235116360,332.60791905,0.00041422,30]
[394057814,1763235116439,344.91441206,0.00041422,30]
[394057815,1763235116507,357.6762453,0.00041422,30]
[394057816,1763235116639,370.91026638,0.00041422,30]
[394057817,1763235116704,384.63394623,0.00041422,30]
[394057818,1763235117196,384.63394623,0.00041422,30]
[394057819,1763235117302,-210.627,0.00033966,37]
[394057820,1763235117334,-188.737272,0.00036986,31]
[394057821,1763235117359,-188.737272,0.00036986,31]
[394057822,1763235117385,-151.0,0.00036986,31]
[394057823,1763235117414,-188.737272,0.00036986,31]
[394057824,1763235117439,-151.0,0.00036986,31]
[394057825,1763235117464,-151.0,0.00036986,31]
[394057826,1763235117489,-151.0,0.00036986,31]
[394057827,1763235117514,-151.0,0.00036986,31]
[394057828,1763235117539,-176.990805,0.00036986,31]
[394057829,1763235117565,-326.765039,0.00036986,31]
[394057830,1763235117591,-326.765039,0.00036986,31]
[394057831,1763235117617,-326.765039,0.00036986,31]
[394057832,1763235117642,-326.765038,0.00036986,31]
[394057833,1763235117729,-693.95,0.00044622,30]
[394057834,1763235117755,-150.0,0.00046574,120]
[394057835,1763235117780,-300.0,0.00046813,120]
[394057836,1763235117810,-150.0,0.00048,120]
[394057837,1763235117836,-600.0,0.00049999,30]
[394057838,1763235117860,-600.0,0.00049999,50]
[394057839,1763235117891,-150.0,0.00049999,30]
[394057840,1763235117916,-500.0,0.00049999,120]
[394057841,1763235117940,-300.0,0.00049999,120]
[394057842,1763235117971,-260156.37345621,0.0005,120]
[394057843,1763235117996,-367.98164316,0.0005,120]
[394057844,1763235118021,-599.39457668,0.0005,120]
[394057845,1763235118061,-3179.74923844,0.0005,120]
[394057846,1763235118090,-150.0,0.0005,70]
[394057847,1763235118115,-225.15400165,0.0005,120]
[394057848,1763235118142,-513.12983525,0.0005,120]
[394057849,1763235118166,-165.16189594,0.0005,120]
[394057850,1763235118192,-680.3155885,0.0005,120]
[394057851,1763235118218,-616.09980672,0.0005,30]
[394057852,1763235118246,-500000.0,0.0005,120]
[394057853,1763235118273,-1000000.0,0.0005,120]
[394057854,1763235118299,-500000.0,0.0005,120]
[394057855,1763235118323,-478.96003305,0.0005,30]
[394057856,1763235118348,-1043.37,0.0005,120]
[394057857,1763235118377,-561.3,0.0005,120]
[394057858,1763235118403,-596.42,0.0005,120]
[394057859,1763235118429,-478.96003305,0.0005,120]
[394057860,1763235118453,-1119.0,0.0005,30]
[394057861,1763235118478,-478.96003305,0.0005,120]
[394057862,1763235118503,-189.32260641,0.00050012,30]
[394057863,1763235118529,-150.0,0.00050027,30]
[394057864,1763235118555,-150.0,0.00050028,30]
[394057865,1763235118580,-189.32260641,0.00050065,30]
[394057866,1763235118610,-150.0,0.00050086,30]
[394057867,1763235118637,-2416.04,0.00050091,30]
[394057868,1763235118665,-152.0,0.000501,120]
[394057869,1763235118694,-150.0,0.0005011,30]
[394057870,1763235118720,-189.32260641,0.00050117,30]
[394057871,1763235118748,-150.0,0.00050144,30]
[394057872,1763235118774,-189.32260641,0.0005017,30]
[394057873,1763235118798,-150.0,0.00050194,30]
[394057874,1763235118822,-150.0,0.00050203,30]
[394057875,1763235118849,-189.32260641,0.00050222,30]
[394057876,1763235118878,-150.0,0.00050261,30]
[394057877,1763235118903,-189.32260641,0.00050275,30]
[394057878,1763235118928,-150.0,0.00050278,30]
[394057879,1763235118955,-150.0,0.00050319,30]
[394057880,1763235118979,-189.32260641,0.00050327,30]
[394057881,1763235119003,-150.0,0.00050362,30]
[394057882,1763235119027,-150.0,0.00050378,30]
[394057883,1763235119054,-189.32260641,0.0005038,30]
[394057884,1763235119082,-189.32260641,0.00050432,30]
[394057885,1763235119106,-150.0,0.00050436,30]
[394057886,1763235119133,-150.0,0.00050446,30]
[394057887,1763235119158,-189.32260641,0.00050485,30]
[394057888,1763235119182,-150.0,0.00050495,30]
[394057889,1763235119206,-2431.37209491,0.000505,120]
[394057890,1763235119234,-500000.0,0.000505,120]
[394057891,1763235119261,-1000000.0,0.000505,120]
[394057892,1763235119288,-500000.0,0.000505,120]
[394057893,1763235119315,-712987.19192329,0.000505,120]
[394057894,1763235123458,-287012.80807671,0.000505,120]
[394057895,1763235123486,-4013.687905,0.000505,120]
[394057896,1763235123512,-309.50643862,0.000505,120]
[394057897,1763235123540,-150.0,0.00050529,30]
[394057898,1763235123565,-189.32260641,0.00050537,30]
[394057899,1763235123590,-150.0,0.00050553,30]
[394057900,1763235123616,-150.0,0.00050571,120]
[394057901,1763235123643,-189.32260641,0.0005059,30]
[394057902,1763235123669,-152.0,0.000506,120]
[394057903,1763235123877,-150.0,0.00050611,30]
[394057904,1763235123905,-150.0,0.00050613,30]
[394057905,1763235123931,-189.32260641,0.00050642,30]
[394057906,1763235123958,-150.0,0.0005067,30]
[394057907,1763235123989,-189.32260641,0.00050695,30]
[394057908,1763235124015,-150.0,0.00050697,30]
[394057909,1763235124040,-152.0,0.000507,120]
[394057910,1763235124064,-150.0,0.00050728,30]
[394057911,1763235124089,-189.32260641,0.00050747,30]
[394057912,1763235124114,-150.0,0.00050781,30]
[394057913,1763235124138,-150.0,0.00050786,30]
[394057914,1763235124162,-189.32260641,0.00050799,30]
[394057915,1763235124186,-150.0,0.00050845,30]
[394057916,1763235124210,-189.32260641,0.00050852,30]
[394057917,1763235124234,-1000.0,0.00050861,120]
[394057918,1763235124260,-1000.0,0.00050861,120]
[394057919,1763235124284,-1000.0,0.00050861,120]
[394057920,1763235124307,-150.0,0.00050865,30]
[394057921,1763235124332,-1000.0,0.00050866,120]
[394057922,1763235124358,-1000.0,0.00050866,120]
[394057923,1763235124383,-1000.0,0.00050866,120]
[394057924,1763235124406,-1000.0,0.00050871,120]
[394057925,1763235124431,-1000.0,0.00050871,120]
[394057926,1763235124454,-1000.0,0.00050871,120]
[394057927,1763235124478,-1000.0,0.00050876,120]
[394057928,1763235124502,-1000.0,0.00050876,120]
[394057929,1763235124525,-1000.0,0.00050876,120]
[394057930,1763235124550,-1000.0,0.00050882,120]
[394057931,1763235124575,-1000.0,0.00050882,120]
[394057932,1763235124598,-1000.0,0.00050882,120]
[394057933,1763235124623,-1000.0,0.00050887,120]
[394057934,1763235124647,-1000.0,0.00050887,120]
[394057935,1763235124675,-1000.0,0.00050887,120]
[394057936,1763235124701,-1000.0,0.00050892,120]
[394057937,1763235124725,-1000.0,0.00050892,120]
[394057938,1763235124749,-1000.0,0.00050892,120]
[394057939,1763235124774,-1000.0,0.00050897,120]
[394057940,1763235124798,-1000.0,0.00050897,120]
[394057941,1763235124824,-1000.0,0.00050897,120]
[394057942,1763235124848,-1000.0,0.00050899,30]
[394057943,1763235124875,-1000.0,0.00050902,120]
[394057944,1763235124901,-1000.0,0.00050902,120]
[394057945,1763235124929,-1000.0,0.00050902,120]
[394057946,1763235124956,-150.0,0.00050903,30]
[394057947,1763235124982,-189.32260641,0.00050904,30]
[394057948,1763235125007,-1000.0,0.00050907,120]
[394057949,1763235125033,-1000.0,0.00050907,120]
[394057950,1763235125058,-1000.0,0.00050907,120]
[394057951,1763235125081,-1603.0,0.00050936,120]
[394057952,1763235125106,-150.0,0.00050948,30]
[394057953,1763235125130,-364.15,0.00050954,120]
[394057954,1763235125155,-500.0,0.00050954,120]
[394057955,1763235125179,-500.0,0.00050954,120]
[394057956,1763235125204,-307.28,0.00050954,120]
[394057957,1763235125227,-500.0,0.00050954,120]
[394057958,1763235125251,-189.32260641,0.00050957,30]
[394057959,1763235125275,-600.0,0.00050957,30]
[394057960,1763235125300,-200.86,0.00050958,30]
[394057961,1763235125325,-150.0,0.00050962,30]
[394057962,1763235125348,-1000.0,0.00050999,120]
[394057963,1763235125372,-600.0,0.00050999,51]
[394057964,1763235125396,-600.0,0.00050999,60]
[394057965,1763235125421,-600.0,0.00050999,120]
[394057966,1763235125447,-50000.0,0.00051,51]
[394057967,1763235125470,-1464.21708025,0.00051,120]
[394057968,1763235125497,-500000.0,0.00051,120]
[394057969,1763235125520,-495.8357177,0.00051,60]
[394057970,1763235125547,-1000000.0,0.00051,120]
[394057971,1763235125575,-500000.0,0.00051,120]
[394057972,1763235125601,-1000000.0,0.00051,120]
[394057973,1763235125627,-1000000.0,0.00051,120]
[394057974,1763235125656,-872.95595968,0.00051,120]
[394057975,1763235125685,-1160.05173355,0.00051,120]
[394057976,1763235125710,-189.32260641,0.00051009,30]
[394057977,1763235125735,-150.0,0.0005102,30]
[394057978,1763235125760,-150.0,0.00051032,30]
[394057979,1763235125784,-189.32260641,0.00051062,30]
[394057980,1763235125809,-150.0,0.00051078,30]
[394057981,1763235125834,-189.32260641,0.00051114,30]
[394057982,1763235125860,-150.0,0.00051116,30]
[394057983,1763235125890,-150.0,0.00051137,30]
[394057984,1763235125916,-189.32260641,0.00051167,30]
[394057985,1763235125941,-150.0,0.00051195,30]
[394057986,1763235125968,-150.0,0.000512,30]
[394057987,1763235125992,-3000.0,0.000512,120]
[394057988,1763235126016,-1000.0,0.00051216,30]
[394057989,1763235126039,-189.32260641,0.00051219,30]
[394057990,1763235126066,-291.00927523,0.00051251,30]
[394057991,1763235126091,-150.0,0.00051253,30]
[394057992,1763235126116,-189.32260641,0.00051272,30]
[394057993,1763235126140,-150.0,0.00051278,30]
[394057994,1763235126165,-150.0,0.00051282,30]
[394057995,1763235126190,-150.0,0.00051284,30]
[394057996,1763235126214,-1000.0,0.00051296,30]
[394057997,1763235126238,-150.0,0.00051312,30]
[394057998,1763235126263,-189.32260641,0.00051324,30]
[394057999,1763235126287,-1000.0,0.00051341,30]
[394058000,1763235126311,-1000.0,0.00051347,30]
[394058001,1763235126334,-1000.0,0.00051353,30]
[394058002,1763235126358,-150.0,0.00051367,30]
[394058003,1763235126381,-150.0,0.00051368,30]
[394058004,1763235126407,-150.0,0.0005137,30]
[394058005,1763235126430,-150.0,0.00051372,30]
[394058006,1763235126455,-189.32260641,0.00051377,30]
[394058007,1763235126477,-150.0,0.00051386,30]
[394058008,1763235126500,-1000.0,0.00051392,30]
[394058009,1763235126525,-152.0,0.000514,120]
[394058010,1763235126549,-152.0,0.000514,120]
[394058011,1763235126573,-1000.0,0.00051405,30]
[394058012,1763235126598,-150.0,0.00051429,30]
[394058013,1763235126622,-189.32260641,0.00051429,30]
[394058014,1763235126647,-150.0,0.00051451,30]
[394058015,1763235126671,-1000.0,0.00051453,30]
[394058016,1763235126700,-2633.06430708,0.00051478,80]
[394058017,1763235126726,-189.32260641,0.00051482,30]
[394058018,1763235126752,-150.0,0.00051487,30]
[394058019,1763235126783,-500000.0,0.000515,120]
[394058020,1763235126811,-92916.44398439,0.000515,120]
[394058021,1763235142148,200.0,0.00041422,30]
[394058022,1763235142497,300.0,0.00041422,30]
[394058023,1763235162270,150.0,0.00041422,30]
[394058024,1763235178703,552.7012767,0.00041422,30]
[394058060,1763235934799,-154.97,0.000309,30]
[394058061,1763235934827,-154.97,0.000357,30]
[394058062,1763235934858,-151.0,0.00037,31]
[394058063,1763235934882,-151.0,0.00037,31]
[394058064,1763235934906,-162.881046,0.00037,31]
[394058065,1763235934931,-151.0,0.00037,31]
[394058066,1763235934955,-154.915387,0.00037,31]
[394058067,1763235934981,-151.0,0.00037,31]
[394058068,1763235935005,-211.271609,0.00037,31]
[394058069,1763235935029,-151.0,0.00037,31]
[394058070,1763235935053,-151.0,0.00037,31]
[394058071,1763235935077,-151.0,0.00037,31]
[394058072,1763235935102,-151.0,0.00037,31]
[394058073,1763235935132,-151.0,0.00037,31]
[394058074,1763235935156,-151.0,0.00037,31]
[394058075,1763235935183,-151.0,0.00037,31]
[394058076,1763235935207,-151.0,0.00037,31]
[394058077,1763235935231,-151.0,0.00037,31]
[394058078,1763235935254,-151.0,0.00037,31]
[394058079,1763235935481,-151.0,0.00037,31]
[394058080,1763235935509,-151.0,0.00037,31]
[394058081,1763235935536,-151.0,0.00037,31]
[394058082,1763235935561,-151.0,0.00037,31]
[394058083,1763235935587,-279.632915,0.00037,31]
[394058084,1763235935612,-151.0,0.00037,31]
[394058085,1763235935636,-151.0,0.00037,31]
[394058086,1763235935661,-542.53831517,0.00037,30]
[394058087,1763235935686,-170.19709622,0.00037,30]
[394058088,1763235935713,-522.71533717,0.00037,30]
[394058089,1763235935737,-515.53639077,0.00037,30]
[394058090,1763235935760,-173.65619352,0.00037,30]
[394058091,1763235935786,-500.0,0.00037,30]
[394058092,1763235935809,-629.79818762,0.00037,30]
[394058093,1763235935834,-151.0,0.00037,31]
[394058094,1763235935861,-151.0,0.00037,31]
[394058095,1763235935888,-151.0,0.00037,31]
[394058096,1763235935915,-151.0,0.00037,31]
[394058097,1763235935939,-393.35056078,0.00037,30]
[394058098,1763235935964,-151.0,0.00037,31]
[394058099,1763235935991,-151.0,0.00037,31]
[394058100,1763235936016,-515.22473767,0.00037,30]
[394058101,1763235936040,-502.28895398,0.00037,30]
[394058102,1763235936065,-151.0,0.00037,31]
[394058103,1763235936092,-151.0,0.00037,31]
[394058104,1763235936116,-151.0,0.00037,31]
[394058105,1763235936143,-504.28621153,0.00037,30]
[394058106,1763235936168,-151.0,0.00037,31]
[394058107,1763235936193,-151.0,0.00037,31]
[394058108,1763235936220,-151.0,0.00037,31]
[394058109,1763235936245,-151.0,0.00037,31]
[394058110,1763235936269,-151.0,0.00037,31]
[394058111,1763235936292,-151.0,0.00037,31]
[394058112,1763235936315,-157.659423,0.00037,31]
[394058113,1763235936341,-151.0,0.00037,31]
[394058114,1763235936366,-151.0,0.00037,31]
[394058115,1763235936390,-153.72047,0.00037,31]
[394058116,1763235936414,-151.0,0.00037,31]
[394058117,1763235936438,-152.621242,0.00037,31]
[394058118,1763235936462,-151.0,0.00037,31]
[394058119,1763235936487,-151.0,0.00037,31]
[394058120,1763235936509,-151.0,0.00037,31]
[394058121,1763235936533,-400.798331,0.00037,31]
[394058122,1763235936556,-400.798331,0.00037,31]
[394058123,1763235936579,-400.798331,0.00037,31]
[394058124,1763235936604,-400.798331,0.00037,31]
[394058125,1763235936628,-151.0,0.00037,31]
[394058126,1763235936652,-151.0,0.00037,31]
[394058127,1763235936679,-151.0,0.00037,31]
[394058128,1763235936702,-151.0,0.00037,31]
[394058129,1763235936726,-151.0,0.00037,31]
[394058130,1763235936751,-151.0,0.00037,31]
[394058131,1763235936773,-151.0,0.00037,31]
[394058132,1763235936799,-151.0,0.00037,31]
[394058133,1763235936823,-151.0,0.00037,31]
[394058134,1763235936848,-151.0,0.00037,31]
[394058135,1763235936873,-151.0,0.00037,31]
[394058136,1763235936899,-151.0,0.00037,31]
[394058137,1763235936927,-151.0,0.00037,31]
[394058138,1763235936954,-151.0,0.00037,31]
[394058139,1763235936982,-151.0,0.00037,31]
[394058140,1763235937007,-151.0,0.00037,31]
[394058141,1763235937034,-151.0,0.00037,31]
[394058142,1763235937059,-151.0,0.00037,31]
[394058143,1763235937087,-156.76694,0.00037,31]
[394058144,1763235937112,-151.0,0.00037,31]
[394058145,1763235937140,-151.0,0.00037,31]
[394058146,1763235937169,-151.0,0.00037,31]
[394058147,1763235937199,-468.55,0.00037,30]
[394058148,1763235937226,-468.55,0.00037,30]
[394058149,1763235937251,-468.55,0.00037,30]
[394058150,1763235937277,-468.55,0.00037,30]
[394058151,1763235937300,-151.0,0.00037,31]
[394058152,1763235937324,-151.0,0.00037,31]
[394058153,1763235937351,-151.0,0.00037,31]
[394058154,1763235937375,-151.0,0.00037,31]
[394058155,1763235937399,-151.0,0.00037,31]
[394058156,1763235937423,-151.0,0.00037,31]
[394058157,1763235937447,-151.0,0.00037,31]
[394058158,1763235937470,-151.0,0.00037233,31]
[394058159,1763235937494,-151.0,0.00037233,31]
[394058160,1763235937517,-151.0,0.00037233,31]
[394058161,1763235937541,-160.395793,0.00037233,31]
[394058162,1763235937565,-151.0,0.00037233,31]
[394058163,1763235937588,-200.17065,0.00037233,31]
[394058164,1763235937612,-200.17065,0.00037233,31]
[394058165,1763235937636,-151.0,0.00037233,31]
[394058166,1763235937659,-200.17065,0.00037233,31]
[394058167,1763235937683,-151.0,0.00037233,30]
[394058168,1763235937707,-158.487929,0.00037233,31]
[394058169,1763235937730,-200.17065,0.00037233,31]
[394058170,1763235937755,-151.0,0.00037233,31]
[394058171,1763235937780,-151.0,0.00037233,31]
[394058172,1763235937804,-154.019544,0.00037233,31]
[394058173,1763235937829,-151.0,0.00037233,31]
[394058174,1763235937854,-151.0,0.00037233,31]
[394058175,1763235937880,-755.397034,0.00037233,31]
[394058176,1763235937905,-151.0,0.00037233,31]
[394058177,1763235937929,-151.0,0.00037233,31]
[394058178,1763235937955,-755.397034,0.00037233,31]
[394058179,1763235937980,-755.397034,0.00037233,31]
[394058180,1763235938006,-755.397034,0.00037233,31]
[394058181,1763235938038,-261.412031,0.00037233,31]
[394058182,1763235938066,-261.412031,0.00037233,31]
[394058183,1763235938094,-261.412031,0.00037233,31]
[394058184,1763235938121,-261.412031,0.00037233,31]
[394058185,1763235938151,-151.0,0.00037233,31]
[394058186,1763235938180,-151.0,0.00038805,120]
[394058187,1763235938207,-151.0,0.00038805,120]
[394058188,1763235938231,-151.0,0.00038805,120]
[394058189,1763235938256,-151.0,0.00038805,120]
[394058190,1763235938282,-151.0,0.00038805,120]
[394058191,1763235938307,-151.0,0.00038805,120]
[394058192,1763235938333,-154.259794,0.00038805,120]
[394058193,1763235938359,-151.0,0.00038805,30]
[394058194,1763235938385,-151.0,0.00038805,120]
[394058195,1763235938410,-151.0,0.00038805,120]
[394058196,1763235938434,-151.0,0.00038805,120]
[394058197,1763235938460,-151.0,0.00038805,120]
[394058198,1763235938486,-151.0,0.00038805,120]
[394058199,1763235938511,-184.448295,0.00038805,120]
[394058200,1763235938536,-312.120822,0.00038805,120]
[394058201,1763235938568,-202.934356,0.00038805,120]
[394058202,1763235938595,-312.120822,0.00038805,120]
[394058203,1763235938623,-202.934356,0.00038805,120]
[394058204,1763235938648,-312.120822,0.00038805,120]
[394058205,1763235938675,-151.0,0.00038805,120]
[394058206,1763235938700,-312.120822,0.00038805,120]
[394058207,1763235938726,-151.0,0.00038805,120]
[394058208,1763235938751,-151.0,0.00038805,120]
[394058209,1763235938776,-153.248007,0.00038805,120]
[394058210,1763235938952,-151.0,0.00038805,120]
[394058211,1763235938985,-154.97,0.000395,30]
[394058212,1763235939011,-2000.0,0.00039639,120]
[394058213,1763235939037,-1000.0,0.00039639,120]
[394058214,1763235939062,-1000.0,0.00039639,120]
[394058215,1763235939088,-1000.0,0.00039639,120]
[394058216,1763235939115,-1000.0,0.00039639,120]
[394058217,1763235939144,-982.542,0.00039639,120]
[394058218,1763235939171,-1000.0,0.00039639,120]
[394058219,1763235939196,-1000.0,0.00039639,120]
[394058220,1763235939222,-1000.0,0.00039639,120]
[394058221,1763235939246,-451.5,0.00039639,30]
[394058222,1763235939271,-533.75,0.000397,30]
[394058223,1763235939296,-168.502,0.00039929,56]
[394058224,1763235939324,-398.0,0.0004037,60]
[394058225,1763235939353,-174.0,0.00041,90]
[394058226,1763235939377,-418.0,0.00041,90]
[394058227,1763235939402,-500.0,0.00041096,60]
[394058228,1763235939430,-500.0,0.00041096,60]
[394058229,1763235939453,-500.0,0.00041096,60]
[394058230,1763235939485,-500.0,0.00041096,60]
[394058231,1763235939520,-500.0,0.00041096,60]
[394058232,1763235939546,-500.0,0.00041096,60]
[394058233,1763235939572,-500.0,0.00041096,60]